bitfinex/quotes_ETHUSD_20250721
["timestamp","ask_amount","ask_price","bid_price","bid_amount"]
[1753104995803,0.002,3796.8,3796.7,7.14081051]
[1753104996206,0.002,3796.8,3796.7,3.1312]
[1753104996404,0.002,3796.8,3796.7,5.76506625]
[1753104996937,0.002,3796.8,3796.7,6.78260491]
[1753104997144,0.002,3796.8,3796.7,6.75626625]
[1753104999404,0.002,3796.8,3796.7,10.38926625]
[1753105001263,0.002,3796.8,3796.7,9.94806625]
[1753105001411,0.002,3796.8,3796.7,3.0]
[1753105002671,0.4738,3796.8,3796.7,3.0]
[1753105002838,0.002,3796.8,3796.7,3.0]
[1753105003024,0.002,3796.8,3795.6,6.7622]
[1753105003228,0.1312,3796.3,3796.1,3.0]
[1753105003564,0.1312,3796.3,3796.0,2.63433272]
[1753105003723,0.1312,3796.3,3795.9,2.63440326]
[1753105003924,0.002,3796.8,3796.2,2.63421316]
[1753105004129,0.1312,3796.5,3796.3,3.0]
[1753105005165,0.002,3796.8,3796.7,5.63386625]
[1753105005355,0.002,3796.8,3796.7,9.83720491]
[1753105005525,0.002,3796.8,3796.7,10.38326625]
[1753105006529,0.002,3796.8,3796.7,9.94206625]
[1753105006961,0.002,3796.8,3796.7,9.94106625]
[1753105009141,0.002,3796.8,3796.7,3.0]
[1753105009359,0.1332,3796.8,3796.7,7.171]
[1753105010366,0.1332,3796.8,3796.2,0.1312]
[1753105010572,0.1312,3796.6,3796.3,4.168]
[1753105010821,0.1312,3796.6,3796.4,2.63407142]
[1753105010982,0.1312,3796.6,3796.3,4.168]
[1753105011320,0.002,3796.8,3796.7,2.63386625]
[1753105011473,0.002,3796.8,3796.7,9.80186625]
[1753105011673,0.002,3796.8,3796.7,10.27396625]
[1753105012516,0.002,3796.8,3796.7,7.168]
[1753105012716,0.002,3796.8,3796.7,7.167]
[1753105012879,1.2356,3796.8,3796.2,3.0]
[1753105013065,0.1312,3796.4,3796.3,7.168]
[1753105013269,0.1312,3796.4,3796.3,9.80214377]
[1753105013473,0.1312,3796.4,3796.3,7.168]
[1753105013903,0.1312,3796.4,3796.3,9.80214377]
[1753105014093,0.1312,3796.4,3796.3,7.168]
[1753105014402,0.1312,3796.4,3796.3,9.80214377]
[1753105014644,0.002,3796.8,3796.5,2.63395984]
[1753105014787,0.1312,3796.7,3796.6,6.79993562]
[1753105014989,0.1312,3796.7,3796.6,4.166]
[1753105015626,0.1312,3796.7,3796.3,3.0]
[1753105015627,0.5592,3796.7,3796.3,3.0]
[1753105015927,0.74749697,3796.6,3796.5,4.166]
[1753105016129,0.1312,3796.5,3796.4,4.165]
[1753105016430,0.002,3796.8,3796.4,4.165]
[1753105016615,0.1312,3796.5,3796.4,4.165]
[1753105017016,0.1312,3796.5,3795.8,3.0]
[1753105017017,3.43890082,3796.4,3795.7,5.63450837]
[1753105017193,3.43890082,3796.4,3795.1,0.00100001]
[1753105017194,0.1312,3795.7,3795.1,0.00100001]
[1753105017391,0.1312,3795.7,3795.5,3.0]
[1753105017632,0.1312,3795.7,3795.6,5.63462957]
[1753105018740,0.002,3796.8,3796.3,2.63408044]
[1753105018741,0.1312,3796.5,3796.3,2.63408044]
[1753105019030,0.1312,3796.5,3796.4,6.79807438]
[1753105019389,0.002,3796.8,3796.7,2.63386625]
[1753105019594,0.002,3796.8,3796.7,9.79786625]
[1753105020234,0.002,3796.8,3796.7,10.81996625]
[1753105020433,1e-08,3796.8,3796.7,6.65596625]
[1753105020642,1e-08,3796.8,3796.7,11.76208227]
[1753105020933,1e-08,3796.8,3796.7,11.28998227]
[1753105021137,1e-08,3796.8,3796.7,11.76208227]
[1753105021643,1e-08,3796.8,3796.7,28.67108811]
[1753105021793,0.002,3797.6,3797.5,6.18331138]
[1753105021990,1e-08,3797.6,3797.5,11.4435155]
[1753105022197,1e-08,3797.6,3797.5,11.41718239]
[1753105022544,1e-08,3797.9,3797.8,2.63310337]
[1753105022697,1e-08,3797.9,3797.8,9.79810337]
[1753105022903,1e-08,3797.9,3797.8,12.66686116]
[1753105025839,1e-08,3797.9,3797.8,12.19476116]
[1753105026706,1e-08,3797.9,3797.8,10.47930337]
[1753105027651,1e-08,3797.9,3797.8,10.47230337]
[1753105027825,1e-08,3797.9,3797.8,3.1312]
[1753105028032,1e-08,3797.9,3797.8,7.158]
[1753105028361,0.42800001,3797.9,3797.8,7.158]
[1753105029056,1e-08,3797.9,3797.8,10.50690337]
[1753105029254,1e-08,3797.9,3797.8,11.11020337]
[1753105029418,1e-08,3797.9,3797.8,10.63810337]
[1753105030340,1e-08,3797.9,3797.8,11.66020337]
[1753105032070,1e-08,3797.9,3797.8,7.03010337]
[1753105032274,1e-08,3797.9,3797.8,11.19210337]
[1753105032782,1e-08,3797.9,3797.8,11.66420337]
[1753105037681,1e-08,3798.1,3798.0,3.18296471]
[1753105037881,1e-08,3798.7,3798.6,6.18254883]
[1753105038219,1e-08,3798.7,3798.6,18.74783367]
[1753105038509,1e-08,3798.7,3798.6,19.21623367]
[1753105038721,1.3293,3800.1,3799.1,3.18220236]
[1753105039016,1.3293,3800.1,3799.1,10.49740236]
[1753105039211,1.3293,3800.1,3799.1,6.31340236]
[1753105039385,0.4392,3799.6,3799.1,9.94640236]
[1753105039582,0.1312,3799.8,3799.1,10.49640236]
[1753105039789,0.1312,3799.8,3799.1,12.07251234]
[1753105039973,0.1312,3799.8,3799.1,11.52251234]
[1753105040177,0.5704,3799.8,3799.1,9.94640236]
[1753105040418,0.1312,3799.8,3799.1,10.49640236]
[1753105041316,0.7589,3800.1,3799.1,10.96480236]
[1753105041520,0.7589,3800.1,3799.4,3.18199452]
[1753105041704,0.1332,3800.3,3799.4,10.38731446]
[1753105042017,0.1332,3800.3,3799.4,12.07047412]
[1753105042223,0.1332,3800.3,3799.4,12.53887412]
[1753105042513,0.4392,3800.2,3799.4,10.49219452]
[1753105042697,0.002,3800.3,3799.4,10.96059452]
[1753105042874,0.4392,3800.2,3799.4,10.49219452]
[1753105043216,0.4612,3799.9,3799.4,10.49219452]
[1753105044308,0.4612,3799.9,3799.4,11.29219452]
[1753105044722,0.4412,3799.5,3799.4,0.9312]
[1753105044877,0.5724,3799.5,3799.4,0.8]
[1753105045081,0.97328372,3799.5,3799.4,0.8]
[1753105045281,0.002,3799.5,3799.4,7.18]
[1753105045524,0.002,3799.5,3799.4,6.81199452]
[1753105045822,0.002,3799.5,3799.4,10.49319452]
[1753105047884,0.002,3799.5,3799.4,10.96159452]
[1753105048080,1e-08,3799.5,3799.4,13.38161959]
[1753105048782,1e-08,3799.5,3799.4,8.73321959]
[1753105048982,1e-08,3799.5,3799.4,10.49319452]
[1753105049226,1e-08,3799.5,3799.4,5.76319452]
[1753105049384,1e-08,3799.5,3799.4,9.94419452]
[1753105049778,1e-08,3799.5,3799.4,10.49419452]
[1753105050680,1e-08,3799.5,3799.4,9.94419452]
[1753105050886,0.43920001,3799.5,3799.4,9.94419452]
[1753105051131,1e-08,3799.5,3799.4,9.94419452]
[1753105051425,1e-08,3799.5,3799.4,11.75181597]
[1753105051728,1e-08,3799.5,3799.4,11.67021597]
[1753105051930,1e-08,3799.5,3799.4,12.22021597]
[1753105052680,0.002,3800.0,3799.9,3.1816482]
[1753105052913,0.002,3800.0,3799.9,21.57594582]
[1753105053220,0.002,3800.0,3799.9,22.14922934]
[1753105053438,0.02,3800.9,3800.2,3.18144045]
[1753105053439,1e-08,3800.3,3800.2,3.18144045]
[1753105053623,0.02,3800.9,3800.8,6.18102504]
[1753105053785,0.02,3800.9,3800.8,11.37243854]
[1753105054500,0.02,3800.9,3800.8,9.94122504]
[1753105054934,1e-08,3801.5,3801.4,2.63060977]
[1753105055137,1e-08,3801.5,3801.4,9.80860977]
[1753105055447,1e-08,3801.5,3801.4,10.95820977]
[1753105055749,0.02,3802.9,3802.7,2.62971046]
[1753105055980,0.02,3802.9,3802.8,9.83493772]
[1753105056111,0.02,3802.9,3802.8,9.80864131]
[1753105056745,0.02,3802.9,3802.8,10.35864131]
[1753105057135,0.02,3802.9,3802.8,11.69194093]
[1753105057337,1e-08,3802.9,3802.8,41.69194093]
[1753105057541,0.02,3803.9,3803.8,3.17894999]
[1753105057736,0.02,3803.9,3803.8,10.35894999]
[1753105057940,0.02,3803.9,3803.8,10.49014999]
[1753105058238,0.4592,3803.9,3803.8,7.179]
[1753105058852,0.4592,3803.9,3803.8,4.179]
[1753105059005,3.0881391,3803.9,3802.8,3.0]
[1753105059206,2.62907203,3803.7,3803.2,0.1312]
[1753105059410,0.96099391,3803.8,3803.2,0.9312]
[1753105059653,0.4392,3803.7,3803.4,3.0]
[1753105059947,0.1312,3803.4,3803.2,0.8]
[1753105060157,0.949,3803.4,3803.2,0.8]
[1753105060312,2.62929561,3803.3,3803.2,0.8]
[1753105060512,0.35782956,3803.3,3803.2,4.977]
[1753105060846,0.4392,3803.3,3803.2,4.977]
[1753105061352,0.4392,3803.3,3803.2,0.8]
[1753105061510,0.949,3803.4,3803.2,0.8]
[1753105061716,0.949,3803.4,3803.3,6.80629561]
[1753105061910,0.949,3803.4,3803.3,4.177]
[1753105062107,1.3882,3803.4,3803.3,4.177]
[1753105062434,0.002,3803.7,3803.6,2.62908823]
[1753105062638,0.1332,3803.7,3803.6,6.80708823]
[1753105062949,0.5724,3803.7,3803.6,6.80708823]
[1753105063757,0.002,3803.7,3803.6,6.80708823]
[1753105064165,0.4412,3803.7,3803.6,6.80708823]
[1753105064541,0.57852,3803.7,3803.5,2.62910269]
[1753105064869,0.1312,3803.3,3802.7,0.1312]
[1753105065027,0.4392,3803.2,3803.1,5.62943388]
[1753105065230,0.4392,3803.2,3803.1,9.80443388]
[1753105065531,0.4392,3803.2,3803.1,7.175]
[1753105065760,0.4392,3803.2,3803.1,9.80443388]
[1753105066427,0.8246,3803.6,3803.3,2.62924436]
[1753105066623,1.398,3803.6,3803.5,2.62915735]
[1753105067065,1.398,3803.6,3803.4,3.0]
[1753105067282,1.0978,3803.6,3802.6,3.0]
[1753105067575,0.7849,3803.2,3802.7,4.175]
[1753105067739,0.4422,3803.1,3802.7,4.175]
[1753105068555,0.4422,3803.1,3802.0,0.1312]
[1753105068556,0.1312,3802.7,3802.0,0.1312]
[1753105068754,0.1312,3802.5,3802.2,2.63002371]
[1753105069077,0.4422,3802.4,3802.3,4.173]
[1753105069241,0.1312,3802.2,3801.8,2.63029312]
[1753105069445,0.4422,3802.1,3801.9,7.173]
[1753105069644,0.1312,3802.2,3802.0,9.80319463]
[1753105070048,0.1312,3802.2,3802.0,7.173]
[1753105070260,0.4422,3802.1,3802.0,5.63018001]
[1753105070426,0.4422,3802.1,3802.0,9.80318001]
[1753105071352,0.4422,3802.1,3801.1,0.02]
[1753105071353,0.7851,3802.0,3801.1,0.02]
[1753105071553,0.1312,3801.6,3801.2,4.171]
[1753105071887,0.4422,3801.5,3801.2,6.80173853]
[1753105072175,0.4422,3801.4,3801.2,4.23647095]
[1753105072378,0.1312,3801.6,3801.2,4.23647095]
[1753105072379,0.4422,3801.3,3801.2,4.23647095]
[1753105072744,0.4422,3801.3,3801.2,1.60573242]
[1753105073382,0.1312,3801.6,3801.2,1.60573242]
[1753105073696,0.7851,3802.0,3801.9,2.63026381]
[1753105073896,0.1312,3802.2,3802.1,5.63012545]
[1753105074191,0.1312,3802.2,3802.1,4.167]
[1753105074343,0.48376261,3802.2,3802.1,4.168]
[1753105074548,0.1312,3802.2,3802.1,4.168]
[1753105074749,0.5734,3802.2,3802.1,4.168]
[1753105075297,4.168,3803.4,3802.1,4.168]
[1753105075298,2.62922621,3803.5,3802.1,4.168]
[1753105075461,2.62838231,3804.7,3802.7,2.62971046]
[1753105075462,0.1312,3802.8,3802.7,2.62971046]
[1753105075790,0.5734,3803.3,3803.0,2.62950302]
[1753105075991,0.4422,3803.2,3803.1,4.172]
[1753105076450,0.4422,3803.2,3803.0,2.62947704]
[1753105076794,0.4422,3803.2,3803.1,4.171]
[1753105077174,0.4422,3803.2,3802.7,3.0]
[1753105077506,0.4422,3803.2,3802.9,2.62955929]
[1753105077654,1.2251,3803.1,3803.0,4.171]
[1753105077857,0.1312,3802.8,3802.3,3.0]
[1753105078090,0.26709473,3803.7,3803.0,2.62945296]
[1753105078091,1.2382,3803.5,3803.0,2.62945296]
[1753105078387,0.1312,3803.3,3803.1,4.17]
[1753105078808,0.1312,3803.3,3803.1,6.7994255]
[1753105078993,0.26814,3803.3,3803.1,4.17]
[1753105079193,0.71034,3803.3,3803.1,4.17]
[1753105079391,0.26814,3803.3,3803.1,4.17]
[1753105079569,0.4422,3803.2,3803.1,4.17]
[1753105080170,0.26814,3803.3,3803.1,4.17]
[1753105080431,0.26814,3803.3,3803.1,6.79942541]
[1753105080560,0.26814,3803.3,3803.1,4.17]
[1753105080767,0.4422,3803.2,3803.1,4.167]
[1753105081702,3.07156474,3803.2,3803.1,4.166]
[1753105082010,0.7967,3803.1,3800.3,10.4913645]
[1753105082327,0.1312,3802.1,3801.2,4.17]
[1753105082461,0.1312,3801.6,3801.2,4.17]
[1753105082666,0.5734,3801.6,3801.2,4.17]
[1753105083070,0.5734,3801.6,3801.5,3.0]
[1753105083429,0.4422,3802.1,3801.5,7.17]
[1753105083704,0.1312,3802.0,3801.5,4.17]
[1753105083915,0.4422,3801.9,3801.5,7.17]
[1753105084214,0.4422,3801.8,3801.5,3.0]
[1753105084370,0.1312,3802.0,3801.6,4.171]
[1753105084571,0.4422,3801.7,3801.6,4.171]
[1753105085293,0.4422,3801.7,3801.6,6.80147138]
[1753105085494,0.4422,3801.7,3801.6,4.171]
[1753105086129,0.4422,3801.7,3801.6,6.80147138]
[1753105086431,0.1312,3802.0,3801.6,6.80147138]
[1753105086641,0.4422,3801.9,3801.5,3.0]
[1753105086795,2.98598984,3802.0,3801.7,4.167]
[1753105086999,0.4422,3801.9,3801.7,4.167]
[1753105087220,0.1312,3801.7,3801.3,2.63067868]
[1753105087428,0.1312,3801.6,3801.4,4.166]
[1753105087633,0.1312,3801.6,3801.4,6.79659901]
[1753105087835,0.1312,3801.6,3801.4,2.63059901]
[1753105088038,0.1312,3801.6,3801.5,4.165]
[1753105088411,0.5734,3801.6,3801.5,4.165]
[1753105088938,0.5734,3801.6,3801.5,6.79554057]
[1753105089144,0.7967,3802.2,3802.1,2.63012545]
[1753105089431,0.8021,3803.0,3802.4,2.62986752]
[1753105089933,0.8021,3803.0,3802.5,4.164]
[1753105090244,0.82957461,3802.9,3802.6,4.163]
[1753105090543,0.82957461,3802.9,3801.6,0.55]
[1753105090544,2.63005628,3802.2,3801.6,3.0]
[1753105090707,2.63019927,3802.0,3801.2,3.0]
[1753105090910,0.4422,3801.9,3801.4,3.0]
[1753105091108,0.4422,3801.8,3801.4,3.0]
[1753105091324,2.63005739,3802.2,3801.4,3.0]
[1753105091325,0.4422,3801.7,3801.4,3.0]
[1753105091520,0.4422,3801.6,3801.4,3.0]
[1753105091695,0.4422,3801.6,3801.4,5.63058443]
[1753105091899,0.4422,3801.6,3801.4,3.0]
[1753105092240,0.7657,3801.8,3801.5,4.161]
[1753105092695,2.63040218,3801.7,3801.5,4.161]
[1753105092898,3.07267696,3801.6,3801.4,4.161]
[1753105093141,2.63047696,3801.6,3801.4,4.161]
[1753105093339,0.4422,3801.5,3801.4,4.161]
[1753105094298,0.82603256,3801.5,3801.4,4.161]
[1753105094505,0.82603256,3801.5,3801.1,0.02]
[1753105094727,1.2496,3801.4,3801.1,0.02]
[1753105095049,2.63074818,3801.2,3801.1,0.02]
[1753105095554,3.07294818,3801.2,3801.1,0.02]
[1753105095734,3.87754818,3801.2,3801.1,0.02]
[1753105097560,3.40624045,3800.2,3800.1,0.02]
[1753105097720,0.7748,3800.2,3800.1,0.02]
[1753105098044,3.84174045,3800.2,3800.1,0.02]
[1753105099825,1.2103,3800.2,3800.1,0.02]
[1753105100606,3.84174045,3800.2,3800.1,0.02]
[1753105100811,4.26789506,3800.2,3800.1,0.02]
[1753105102323,4.26789506,3800.2,3799.5,0.001]
[1753105102324,2.63185598,3799.6,3799.5,0.001]
[1753105102531,3.42155598,3799.6,3799.5,0.001]
[1753105102726,3.85705598,3799.6,3799.5,0.001]
[1753105103855,18.35705598,3799.6,3799.5,0.001]
[1753105104031,3.85705598,3799.6,3799.5,0.001]
[1753105104354,4.2448108,3799.6,3799.5,0.001]
[1753105104890,3.39123308,3799.2,3799.1,0.02]
[1753105105268,18.32673308,3799.2,3799.1,0.02]
[1753105106218,22.47473308,3799.2,3799.1,0.02]
[1753105106418,22.90088769,3799.2,3799.1,0.02]
[1753105108336,8.40088769,3799.2,3799.1,0.02]
[1753105108751,4.9324,3799.5,3799.1,0.02]
[1753105108953,7.56433922,3799.5,3799.1,0.02]
[1753105109173,4.9324,3799.5,3799.1,0.02]
[1753105109382,0.7854,3799.5,3799.1,0.02]
[1753105109683,0.7874,3800.3,3799.1,0.02]
[1753105109852,0.7874,3800.3,3799.2,4.6165]
[1753105110053,0.7874,3800.3,3799.7,2.63174017]
[1753105110380,0.7874,3800.3,3799.3,3.02632063]
[1753105110538,4.146,3800.7,3799.3,3.02632063]
[1753105110539,2.63118414,3800.6,3799.9,2.63161926]
[1753105110735,4.9658,3800.7,3800.0,2.63155293]
[1753105110960,0.8198,3800.7,3799.6,2.63185598]
[1753105111173,2.63129765,3800.5,3799.6,2.65817453]
[1753105111350,2.63129765,3800.5,3799.8,2.63168516]
[1753105111875,2.63124444,3800.5,3799.8,2.63170635]
[1753105112037,2.97635421,3800.5,3799.8,2.63170635]
[1753105112238,0.1312,3800.0,3799.8,2.63170635]
[1753105112638,0.1312,3800.0,3799.9,2.6316482]
[1753105113146,0.1312,3800.0,3799.9,3.0961482]
[1753105114383,3.45095369,3800.7,3800.0,2.6315756]
[1753105114549,3.45095369,3800.7,3799.9,0.4645]
[1753105114550,0.1312,3800.3,3799.9,3.09608189]
[1753105114756,0.1312,3800.3,3799.9,0.4645]
[1753105115083,0.1312,3800.3,3800.1,3.0]
[1753105115236,0.1312,3800.3,3800.1,2.63148449]
[1753105115978,0.1312,3800.3,3800.1,3.0]
[1753105116418,0.5667,3800.3,3799.8,4.146]
[1753105116619,0.1312,3800.0,3799.8,4.146]
[1753105117484,0.1312,3800.0,3799.7,5.63178212]
[1753105117681,0.1312,3800.0,3799.9,3.1816482]
[1753105117882,0.1312,3800.9,3800.1,3.18150969]
[1753105118088,0.1312,3800.9,3800.4,2.63126789]
[1753105118288,0.1312,3800.9,3800.6,3.0]
[1753105118492,0.1312,3800.9,3800.7,2.63109427]
[1753105118667,0.1312,3800.9,3800.7,3.0]
[1753105119103,0.1312,3800.9,3800.5,3.0]
[1753105119485,0.1312,3800.9,3800.5,2.63123266]
[1753105119873,0.1312,3800.9,3800.2,0.1312]
[1753105120112,0.1312,3800.5,3800.3,7.145]
[1753105120425,0.4355,3801.3,3800.4,5.63130196]
[1753105120714,0.1312,3800.8,3800.7,5.63109427]
[1753105120921,0.8095,3801.6,3800.8,3.0]
[1753105121073,0.002,3801.8,3801.7,2.63040218]
[1753105121416,0.002,3801.8,3801.7,5.63040218]
[1753105121778,0.002,3801.8,3801.7,6.09490218]
[1753105121975,0.002,3801.8,3801.7,5.63040218]
[1753105123122,0.002,3801.8,3801.5,0.1312]
[1753105123422,0.002,3801.8,3801.6,4.145]
[1753105123619,0.002,3801.8,3801.7,2.63040218]
[1753105123841,0.002,3801.8,3801.7,6.6712062]
[1753105124051,0.002,3801.8,3801.7,7.18811924]
[1753105124236,0.02,3801.9,3801.8,5.630333]
[1753105124437,1e-08,3801.9,3801.8,6.12113633]
[1753105124733,1e-08,3801.9,3801.8,6.094833]
[1753105124943,1e-08,3801.9,3801.8,12.72371076]
[1753105125929,1e-08,3801.9,3801.8,13.27271076]
[1753105126130,1e-08,3801.9,3801.8,9.12571076]
[1753105126324,1e-08,3801.9,3801.8,13.27171076]
[1753105126525,1e-08,3801.9,3801.8,9.12571076]
[1753105126738,1e-08,3801.9,3801.8,13.27071076]
[1753105126904,1e-08,3801.9,3801.8,9.12571076]
[1753105127239,1e-08,3801.9,3801.8,13.27071076]
[1753105127397,1e-08,3801.9,3801.8,13.47182294]
[1753105127599,1e-08,3801.9,3801.8,15.73881494]
[1753105128239,1e-08,3801.9,3801.8,9.32682294]
[1753105128414,1e-08,3801.9,3801.8,13.47082294]
[1753105128936,1e-08,3801.9,3801.8,9.32682294]
[1753105129140,1e-08,3801.9,3801.8,13.47082294]
[1753105129438,1e-08,3801.9,3801.8,9.32682294]
[1753105129642,1e-08,3801.9,3801.8,13.47082294]
[1753105130017,1e-08,3801.9,3801.8,7.83948994]
[1753105130201,1e-08,3801.9,3801.8,7.98894518]
[1753105130758,1e-08,3801.9,3801.8,18.91285212]
[1753105130919,1e-08,3802.4,3802.3,11.42108576]
[1753105131121,1e-08,3802.4,3802.3,15.56408576]
[1753105131328,1e-08,3802.4,3802.3,16.16368576]
[1753105131536,1e-08,3802.4,3802.3,18.04306144]
[1753105131848,0.02,3802.9,3802.8,3.17964131]
[1753105132052,0.02,3802.9,3802.8,13.99856731]
[1753105132053,1e-08,3802.9,3802.8,13.99856731]
[1753105132365,1e-08,3802.9,3802.8,13.88556331]
[1753105132514,1e-08,3802.9,3802.8,9.74256331]
[1753105132849,1e-08,3802.9,3802.8,12.4532219]
[1753105133145,1e-08,3802.9,3802.8,9.4522219]
[1753105133350,1e-08,3802.9,3802.8,5.3102219]
[1753105133536,1e-08,3802.9,3802.8,12.4522219]
[1753105133732,1e-08,3802.9,3802.8,11.9838219]
[1753105133938,1e-08,3802.9,3802.8,12.4522219]
[1753105134357,1e-08,3802.9,3802.8,2.76084131]
[1753105134851,1e-08,3802.9,3802.8,6.77164131]
[1753105135424,1e-08,3802.9,3802.8,6.90284131]
[1753105135824,1e-08,3802.9,3802.8,2.76084131]
[1753105136023,1e-08,3802.9,3802.8,9.90284131]
[1753105136237,1e-08,3802.9,3802.8,5.76084131]
[1753105136453,1e-08,3802.9,3802.8,9.90284131]
[1753105136628,1e-08,3802.9,3802.8,5.76084131]
[1753105136831,1e-08,3802.9,3802.8,9.90284131]
[1753105138045,1e-08,3802.9,3802.8,5.76084131]
[1753105138256,1e-08,3802.9,3802.8,3.0]
[1753105138459,1e-08,3802.9,3802.8,6.77164131]
[1753105138754,1e-08,3802.9,3802.8,9.90284131]
[1753105138955,1e-08,3802.9,3802.8,11.86138992]
[1753105140751,1e-08,3802.9,3802.8,24.56981192]
[1753105141461,1e-08,3802.9,3802.8,11.86138992]
[1753105141625,1e-08,3802.9,3802.8,11.86038992]
[1753105142373,1e-08,3802.9,3802.8,15.37753892]
[1753105142572,1e-08,3802.9,3802.8,14.22015192]
[1753105142772,1e-08,3802.9,3802.8,11.86038992]
[1753105142930,1e-08,3802.9,3802.8,33.42445792]
[1753105143132,1e-08,3802.9,3802.8,17.05032092]
[1753105144167,0.02,3803.9,3803.8,3.17894999]
[1753105144477,1e-08,3803.9,3803.8,10.63784499]
[1753105144658,1e-08,3803.9,3803.8,11.10624499]
[1753105144863,1e-08,3803.9,3803.8,7.09644499]
[1753105145164,1e-08,3803.9,3803.8,11.23744499]
[1753105145364,1e-08,3803.9,3803.8,11.43517111]
[1753105145741,1e-08,3803.9,3803.8,6.82742177]
[1753105145963,1e-08,3803.9,3803.8,10.45114999]
[1753105146867,0.44580001,3803.9,3803.8,2.62894999]
[1753105147041,0.44580001,3803.9,3803.8,6.76994999]
[1753105147248,1e-08,3803.9,3803.8,6.76994999]
[1753105147478,1e-08,3803.9,3803.8,2.62894999]
[1753105147628,1e-08,3803.9,3803.8,6.76994999]
[1753105147828,1e-08,3803.9,3803.8,6.90114999]
[1753105148033,1e-08,3803.9,3803.8,9.90114999]
[1753105148344,1e-08,3803.9,3803.8,5.76014999]
[1753105148544,0.44580001,3803.9,3803.8,9.90114999]
[1753105149075,0.44580001,3803.9,3803.8,2.76014999]
[1753105149285,0.44580001,3803.9,3803.8,6.90114999]
[1753105149435,1e-08,3803.9,3803.8,6.90114999]
[1753105150836,1e-08,3803.9,3803.8,6.90014999]
[1753105151745,1e-08,3803.9,3803.8,12.36550978]
[1753105152166,1e-08,3803.9,3803.8,11.89710978]
[1753105152868,1e-08,3803.9,3803.8,7.75710978]
[1753105153174,1e-08,3803.9,3803.8,10.64418668]
[1753105153473,1e-08,3803.9,3803.8,9.90014999]
[1753105154394,0.44580001,3803.9,3803.8,2.76014999]
[1753105154565,0.44580001,3803.9,3803.8,2.62894999]
[1753105154889,0.44580001,3803.9,3803.8,6.76894999]
[1753105155564,0.44580001,3803.9,3803.8,2.62894999]
[1753105155763,1e-08,3803.9,3803.8,9.79523948]
[1753105155959,1e-08,3803.9,3803.8,9.90014999]
[1753105156590,1e-08,3803.9,3803.8,11.6882894]
[1753105156793,1e-08,3803.9,3803.8,33.4204834]
[1753105156997,0.02,3804.9,3804.5,0.55]
[1753105157172,0.02,3804.9,3804.8,3.30945904]
[1753105157368,0.02,3804.9,3804.8,10.47574163]
[1753105157704,1e-08,3804.9,3804.8,11.90154369]
[1753105159074,1e-08,3804.9,3804.8,7.76154369]
[1753105159269,1e-08,3804.9,3804.8,7.29784369]
[1753105159589,1e-08,3804.9,3804.8,11.43784369]
[1753105159790,1e-08,3804.9,3804.8,5.75945904]
[1753105160022,1e-08,3804.9,3804.8,9.89845904]
[1753105160192,1e-08,3804.9,3804.8,5.75945904]
[1753105160398,1e-08,3804.9,3804.8,10.44845904]
[1753105161788,1e-08,3804.9,3804.8,10.91215904]
[1753105161990,1e-08,3804.9,3804.8,12.26621466]
[1753105162604,1e-08,3804.9,3804.8,15.3024376]
[1753105163006,1e-08,3804.9,3804.8,8.4348826]
[1753105163507,1e-08,3804.9,3804.8,30.0899246]
[1753105163669,1e-08,3804.9,3804.8,36.8556816]
[1753105163865,1e-08,3804.9,3804.8,35.4714106]
[1753105164069,1e-08,3804.9,3804.8,14.5196236]
[1753105164304,1e-08,3804.9,3804.8,8.12721466]
[1753105164505,1e-08,3804.9,3804.8,7.66351466]
[1753105164704,1e-08,3804.9,3804.8,12.26621466]
[1753105165030,1e-08,3804.9,3804.8,23.50765766]
[1753105165303,1e-08,3804.9,3804.8,20.61466166]
[1753105165502,1e-08,3804.9,3804.8,17.2065826]
[1753105165711,1e-08,3805.9,3805.8,6.17756844]
[1753105165882,1e-08,3805.9,3805.8,11.19709058]
[1753105166068,1e-08,3805.9,3805.8,11.32829058]
[1753105166476,1e-08,3805.9,3805.8,10.44776844]
[1753105166678,0.73010001,3806.2,3806.1,5.62736134]
[1753105166888,0.4393,3806.4,3806.3,2.62722328]
[1753105167099,0.4393,3806.3,3806.1,3.1312]
[1753105167300,0.1312,3806.7,3806.2,2.62723839]
[1753105167519,0.02,3806.9,3806.3,7.688]
[1753105167702,0.02,3806.9,3806.8,5.62687821]
[1753105167903,0.02,3806.9,3806.8,11.2885114]
[1753105168088,0.02,3806.9,3806.8,11.26224262]
[1753105168302,0.02,3806.9,3806.8,10.31487821]
[1753105168681,0.02,3806.9,3806.8,11.60906249]
[1753105168880,0.02,3806.9,3806.8,10.31487821]
[1753105169185,0.02,3806.9,3806.8,9.76487821]
[1753105169539,0.02,3806.9,3806.8,10.31487821]
[1753105169684,0.4593,3806.9,3806.8,9.76487821]
[1753105170198,0.4593,3806.9,3806.8,2.62687821]
[1753105170683,0.02,3806.9,3806.8,2.62687821]
[1753105170880,0.02,3806.9,3806.8,3.59223309]
[1753105171083,0.02,3806.9,3806.8,4.11596431]
[1753105172300,0.4593,3806.9,3806.8,2.62687821]
[1753105172698,0.02,3806.9,3806.8,2.62687821]
[1753105172933,0.02,3806.9,3806.8,2.65314699]
[1753105173141,0.02,3806.9,3806.8,3.17687821]
[1753105173346,1.275,3806.9,3806.8,6.76387821]
[1753105173633,0.02,3806.9,3806.8,6.76387821]
[1753105175071,0.02,3806.9,3806.8,7.31387821]
[1753105175197,0.02,3806.9,3806.8,8.25296431]
[1753105175413,0.8004,3807.5,3807.4,2.62646425]
[1753105175648,1.2597,3807.9,3807.8,2.62618835]
[1753105175937,0.8204,3807.9,3807.8,2.62618835]
[1753105176085,0.8204,3807.9,3807.6,4.137]